[Event "FIDE Women World Blitz 2021"]
[Site "Warsaw"]
[Date "2021.12.29"]
[Round "1.35"]
[White "Kurmangaliyeva, Liya"]
[Black "Mamedjarova, Turkan"]
[Result "1-0"]
[ECO "E12"]
[WhiteElo "2222"]
[BlackElo "2264"]
[Annotator "NA"]
[PlyCount "131"]
[EventDate "2021.12.29"]
[EventType "swiss"]
[EventCountry "POL"]
[Tiebreak "Cut1 Buchholz"]
[SourceTitle "playchess.com"]
[Source "ChessBase"]
[SourceQuality "1"]
[TimeControl "180+2"]

1. d4 {[%emt 0:00:03]} Nf6 {[%emt 0:00:01]} 2. c4 {[%emt 0:00:01]} e6 {[%emt 0:
00:01]} 3. Nf3 {[%emt 0:00:03]} b6 {[%emt 0:00:01]} 4. a3 {[%emt 0:00:03]} Bb7
{[%emt 0:00:02]} 5. Nc3 {[%emt 0:00:03]} d5 {[%emt 0:00:02]} 6. Qa4+ {[%emt 0:
00:08]} c6 {[%emt 0:00:09]} 7. Bg5 {[%emt 0:00:08]} Be7 {[%emt 0:00:03]} 8.
cxd5 {[%emt 0:00:03]} exd5 {[%emt 0:00:27]} 9. e3 {[%emt 0:00:02]} O-O {
[%emt 0:00:10]} 10. Bd3 {[%emt 0:00:03]} h6 {[%emt 0:00:02]} 11. Bh4 {[%emt 0:
00:20]} c5 {[%emt 0:00:03]} 12. Rc1 {[%emt 0:00:16]} c4 {[%emt 0:00:29]} 13.
Bb1 {[%emt 0:00:06]} Nbd7 {[%emt 0:00:05]} 14. O-O {[%emt 0:00:04]} Re8 {
[%emt 0:00:02]} 15. Qc2 {[%emt 0:00:11]} a6 {[%emt 0:00:05]} 16. Ne5 {[%emt 0:
00:16]} Nf8 {[%emt 0:00:03]} 17. Qf5 {[%emt 0:00:09]} Bc8 {[%emt 0:00:09]} 18.
Qf3 {[%emt 0:00:06]} Qd6 {[%emt 0:00:26]} 19. Bxf6 {[%emt 0:00:27]} Bxf6 {
[%emt 0:00:03]} 20. Qxd5 {[%emt 0:00:13]} Bxe5 {[%emt 0:00:06]} 21. dxe5 {
[%emt 0:00:06]} Qxd5 {[%emt 0:00:03]} 22. Nxd5 {[%emt 0:00:02]} Rb8 {[%emt 0:
00:00]} 23. Rxc4 {[%emt 0:00:13]} Rxe5 {[%emt 0:00:04]} 24. Rd4 {[%emt 0:00:07]
} b5 {[%emt 0:00:12]} 25. Nb4 {[%emt 0:00:04]} Bb7 {[%emt 0:00:04]} 26. Rc1 {
[%emt 0:00:06]} Ne6 {[%emt 0:00:10]} 27. Rd7 {[%emt 0:00:04]} Rg5 {[%emt 0:00:
03]} 28. g3 {[%emt 0:00:14]} Kf8 {[%emt 0:00:24]} 29. Nc6 {[%emt 0:00:00]} Rc8
{[%emt 0:00:02]} 30. Rxb7 {[%emt 0:00:00]} Nc5 {[%emt 0:00:04]} 31. Nd4 {
[%emt 0:00:08]} Rd5 {[%emt 0:00:10]} 32. b4 {[%emt 0:00:02]} Nxb7 {[%emt 0:00:
03]} 33. Rxc8+ {[%emt 0:00:01]} Ke7 {[%emt 0:00:01]} 34. Rc7+ {[%emt 0:00:02]}
Rd7 {[%emt 0:00:01]} 35. Rxd7+ {[%emt 0:00:02]} Kxd7 {[%emt 0:00:00]} 36. Be4 {
[%emt 0:00:04]} Nd6 {[%emt 0:00:02]} 37. Bd5 {[%emt 0:00:00]} f6 {[%emt 0:00:
01]} 38. e4 {[%emt 0:00:02]} Ke7 {[%emt 0:00:04]} 39. f3 {[%emt 0:00:03]} Nc8 {
[%emt 0:00:01]} 40. Kf2 {[%emt 0:00:02]} Nb6 {[%emt 0:00:01]} 41. Bb3 {[%emt 0:
00:00]} g6 {[%emt 0:00:02]} 42. Ke3 {[%emt 0:00:01]} Kd6 {[%emt 0:00:01]} 43.
Kd3 {[%emt 0:00:02]} Nd7 {[%emt 0:00:02]} 44. f4 {[%emt 0:00:01]} h5 {[%emt 0:
00:01]} 45. Nf3 {[%emt 0:00:02]} Nb8 {[%emt 0:00:06]} 46. Bd5 {[%emt 0:00:02]}
Nd7 {[%emt 0:00:02]} 47. Kd4 {[%emt 0:00:01]} Nb6 {[%emt 0:00:06]} 48. e5+ {
[%emt 0:00:02]} Ke7 {[%emt 0:00:01]} 49. Bb7 {[%emt 0:00:03]} Nc4 {[%emt 0:00:
03]} 50. Bxa6 {[%emt 0:00:02]} Nxa3 {[%emt 0:00:01]} 51. Kc3 {[%emt 0:00:03]}
Ke6 {[%emt 0:00:02]} 52. Kb3 {[%emt 0:00:03]} Nc4 {[%emt 0:00:01]} 53. Bxb5 {
[%emt 0:00:02]} Ne3 {[%emt 0:00:00]} 54. exf6 {[%emt 0:00:05]} Kxf6 {[%emt 0:
00:01]} 55. Bd3 {[%emt 0:00:02]} Ng4 {[%emt 0:00:04]} 56. b5 {[%emt 0:00:01]}
Ke7 {[%emt 0:00:07]} 57. Kb4 {[%emt 0:00:01]} Kd6 {[%emt 0:00:04]} 58. Bxg6 {
[%emt 0:00:04]} Ne3 {[%emt 0:00:01]} 59. Bxh5 {[%emt 0:00:02]} Nd5+ {[%emt 0:
00:01]} 60. Kb3 {[%emt 0:00:01]} Kc5 {[%emt 0:00:01]} 61. Be8 {[%emt 0:00:02]}
Ne3 {[%emt 0:00:02]} 62. h4 {[%emt 0:00:02]} Nf5 {[%emt 0:00:01]} 63. g4 {
[%emt 0:00:02]} Nd6 {[%emt 0:00:02]} 64. Bc6 {[%emt 0:00:02]} Nc4 {[%emt 0:00:
02]} 65. h5 {[%emt 0:00:03]} Ne3 {[%emt 0:00:02]} 66. h6 {[%emt 0:00:16]} 1-0

[Event "FIDE Women World Blitz 2021"]
[Site "Warsaw"]
[Date "2021.12.29"]
[Round "1.36"]
[White "Girya, Olga"]
[Black "Kucharska, Honorata"]
[Result "0-1"]
[ECO "A89"]
[WhiteElo "2402"]
[BlackElo "2168"]
[Annotator "ChessBase"]
[PlyCount "116"]
[EventDate "2021.12.29"]
[EventType "swiss"]
[EventCountry "POL"]
[Tiebreak "Cut1 Buchholz"]
[SourceTitle "playchess.com"]
[Source "ChessBase"]
[SourceQuality "1"]
[TimeControl "180+2"]

1. d4 {[%emt 0:00:00]} f5 {[%emt 0:00:00]} 2. c4 {[%emt 0:00:00]} Nf6 {[%emt 0:
00:00]} 3. Nc3 {[%emt 0:00:00]} d6 {[%emt 0:00:00]} 4. Nf3 {[%emt 0:00:00]} g6
{[%emt 0:00:00]} 5. g3 {[%emt 0:00:00]} Bg7 {[%emt 0:00:00]} 6. Bg2 {[%emt 0:
00:00]} O-O {[%emt 0:00:00]} 7. O-O {[%emt 0:00:00]} Nc6 {[%emt 0:00:00]} 8. d5
{[%emt 0:00:00]} Na5 {[%emt 0:00:00]} 9. Qd3 {[%emt 0:00:00]} c5 {[%emt 0:00:
00]} 10. Ng5 {[%emt 0:00:00]} Ng4 {[%emt 0:00:00]} 11. f4 {[%emt 0:00:00]} e5 {
[%emt 0:00:00]} 12. dxe6 {[%emt 0:00:00]} h6 {[%emt 0:00:00]} 13. Nd5 {[%emt 0:
00:00]} Nc6 {[%emt 0:00:00]} 14. Nf7 {[%emt 0:00:00]} Qe8 {[%emt 0:00:00]} 15.
Nc7 {[%emt 0:00:00]} Qe7 {[%emt 0:00:00]} 16. Qxd6 {[%emt 0:00:00]} Bxe6 {
[%emt 0:00:00]} 17. Bxc6 {[%emt 0:02:00]} Qxf7 {[%emt 0:01:51]} 18. Qxe6 {
[%emt 0:00:00]} bxc6 {[%emt 0:00:55]} 19. Qxf7+ {[%emt 0:00:00]} Kxf7 {[%emt 0:
00:00]} 20. Nxa8 {[%emt 0:00:00]} Rxa8 {[%emt 0:00:03]} 21. h3 {[%emt 0:00:00]}
Nf6 {[%emt 0:00:06]} 22. Be3 {[%emt 0:00:31]} Ne4 {[%emt 0:00:00]} 23. Kg2 {
[%emt 0:00:13]} Bxb2 {[%emt 0:00:16]} 24. Rab1 {[%emt 0:00:00]} Bf6 {[%emt 0:
00:00]} 25. Rb7+ {[%emt 0:00:06]} Ke6 {[%emt 0:00:00]} 26. Rd1 {[%emt 0:00:00]}
a5 {[%emt 0:00:00]} 27. Rb6 {[%emt 0:00:40]} Rc8 {[%emt 0:00:00]} 28. Ra6 {
[%emt 0:00:00]} Bc3 {[%emt 0:00:00]} 29. g4 {[%emt 0:00:08]} h5 {[%emt 0:00:00]
} 30. Ra7 {[%emt 0:00:02]} hxg4 {[%emt 0:00:00]} 31. hxg4 {[%emt 0:00:00]} Rb8
{[%emt 0:00:00]} 32. Rdd7 {[%emt 0:00:05]} fxg4 {[%emt 0:00:00]} 33. Re7+ {
[%emt 0:00:00]} Kf5 {[%emt 0:00:00]} 34. Rab7 {[%emt 0:00:05]} Rh8 {[%emt 0:00:
00]} 35. Rf7+ {[%emt 0:00:01]} Nf6 {[%emt 0:00:01]} 36. Bxc5 {[%emt 0:00:05]}
Kxf4 {[%emt 0:00:00]} 37. Rbe7 {[%emt 0:00:04]} g3 {[%emt 0:00:02]} 38. Re3 {
[%emt 0:00:01]} Rh2+ {[%emt 0:00:00]} 39. Kg1 {[%emt 0:00:00]} Ba1 {[%emt 0:00:
13]} 40. Rf3+ {[%emt 0:00:00]} Kg4 {[%emt 0:00:09]} 41. R7xf6 {[%emt 0:00:10]}
Bxf6 {[%emt 0:00:06]} 42. Rxf6 {[%emt 0:00:00]} Rxe2 {[%emt 0:00:11]} 43. Rxg6+
{[%emt 0:00:00]} Kf3 {[%emt 0:00:01]} 44. Rf6+ {[%emt 0:00:00]} Kg4 {[%emt 0:
00:00]} 45. Rxc6 {[%emt 0:00:02]} Rxa2 {[%emt 0:00:05]} 46. Rg6+ {[%emt 0:00:
00]} Kh3 {[%emt 0:00:06]} 47. Rf6 {[%emt 0:00:10]} a4 {[%emt 0:00:00]} 48. Bd4
{[%emt 0:00:00]} Rd2 {[%emt 0:00:00]} 49. Be3 {[%emt 0:00:00]} Rd3 {[%emt 0:00:
02]} 50. Bb6 {[%emt 0:00:06]} a3 {[%emt 0:00:00]} 51. Rh6+ {[%emt 0:00:00]} Kg4
{[%emt 0:00:00]} 52. Rg6+ {[%emt 0:00:00]} Kh3 {[%emt 0:00:00]} 53. Rh6+ {
[%emt 0:00:00]} Kg4 {[%emt 0:00:00]} 54. Re6 {[%emt 0:00:00]} a2 {[%emt 0:00:
00]} 55. Re1 {[%emt 0:00:00]} Rb3 {[%emt 0:00:00]} 56. Bd4 {[%emt 0:00:04]} Rb1
{[%emt 0:00:00]} 57. Kf1 {[%emt 0:00:00]} Kf3 {[%emt 0:00:00]} 58. c5 {[%emt 0:
00:05]} g2+ {[%emt 0:00:00]} 0-1

[Event "FIDE Women World Blitz 2021"]
[Site "Warsaw"]
[Date "2021.12.29"]
[Round "1.37"]
[White "Hryzlova, Sofiia"]
[Black "Garifullina, Leya"]
[Result "1/2-1/2"]
[ECO "E48"]
[WhiteElo "2097"]
[BlackElo "2416"]
[Annotator "NA"]
[PlyCount "101"]
[EventDate "2021.12.29"]
[EventType "swiss"]
[EventCountry "POL"]
[Tiebreak "Cut1 Buchholz"]
[SourceTitle "playchess.com"]
[Source "ChessBase"]
[SourceQuality "1"]
[TimeControl "180+2"]

1. d4 {[%emt 0:00:01]} Nf6 {[%emt 0:00:01]} 2. c4 {[%emt 0:00:01]} e6 {[%emt 0:
00:01]} 3. Nc3 {[%emt 0:00:02]} Bb4 {[%emt 0:00:01]} 4. e3 {[%emt 0:00:01]} c5
{[%emt 0:00:04]} 5. Bd3 {[%emt 0:00:03]} O-O {[%emt 0:00:04]} 6. Nge2 {[%emt 0:
00:03]} cxd4 {[%emt 0:00:08]} 7. exd4 {[%emt 0:00:02]} d5 {[%emt 0:00:01]} 8.
a3 {[%emt 0:00:07]} Be7 {[%emt 0:00:09]} 9. O-O {[%emt 0:00:07]} Nc6 {[%emt 0:
00:03]} 10. Bf4 {[%emt 0:00:11]} h6 {[%emt 0:00:13]} 11. c5 {[%emt 0:00:05]}
Nh5 {[%emt 0:00:22]} 12. Be3 {[%emt 0:00:14]} a5 {[%emt 0:00:06]} 13. Rb1 {
[%emt 0:00:05]} Bg5 {[%emt 0:00:21]} 14. Qd2 {[%emt 0:00:14]} Bxe3 {[%emt 0:00:
03]} 15. Qxe3 {[%emt 0:00:02]} Qg5 {[%emt 0:00:03]} 16. f4 {[%emt 0:00:17]} Qh4
{[%emt 0:00:04]} 17. b4 {[%emt 0:00:07]} axb4 {[%emt 0:00:02]} 18. axb4 {
[%emt 0:00:01]} Ra3 {[%emt 0:00:04]} 19. Rf3 {[%emt 0:00:12]} Qf6 {[%emt 0:00:
12]} 20. b5 {[%emt 0:00:14]} Ne7 {[%emt 0:00:04]} 21. g4 {[%emt 0:00:05]} Bd7 {
[%emt 0:00:26]} 22. g5 {[%emt 0:00:38]} Nf5 {[%emt 0:00:30]} 23. gxf6 {[%emt 0:
00:03]} Nxe3 {[%emt 0:00:01]} 24. fxg7 {[%emt 0:00:06]} Rfa8 {[%emt 0:00:01]}
25. Rxe3 {[%emt 0:00:02]} Nxg7 {[%emt 0:00:08]} 26. Rg3 {[%emt 0:00:03]} Kf8 {
[%emt 0:00:00]} 27. Kf2 {[%emt 0:00:05]} Nh5 {[%emt 0:00:04]} 28. Rf3 {[%emt 0:
00:04]} Nf6 {[%emt 0:00:01]} 29. h3 {[%emt 0:00:07]} Ke7 {[%emt 0:00:01]} 30.
Ke3 {[%emt 0:00:02]} Ra1 {[%emt 0:00:02]} 31. Rff1 {[%emt 0:00:03]} R1a3 {
[%emt 0:00:02]} 32. Rb2 {[%emt 0:00:12]} Be8 {[%emt 0:00:05]} 33. Rfb1 {
[%emt 0:00:01]} Bd7 {[%emt 0:00:02]} 34. Rb3 {[%emt 0:00:02]} R3a5 {[%emt 0:00:
01]} 35. f5 {[%emt 0:00:05]} Rg8 {[%emt 0:00:07]} 36. fxe6 {[%emt 0:00:04]}
fxe6 {[%emt 0:00:01]} 37. Rg1 {[%emt 0:00:04]} Rxg1 {[%emt 0:00:02]} 38. Nxg1 {
[%emt 0:00:02]} Ra1 {[%emt 0:00:01]} 39. Nf3 {[%emt 0:00:02]} Rh1 {[%emt 0:00:
02]} 40. h4 {[%emt 0:00:03]} Rh3 {[%emt 0:00:01]} 41. Bf1 {[%emt 0:00:02]} Rh1
{[%emt 0:00:03]} 42. Rb1 {[%emt 0:00:05]} Be8 {[%emt 0:00:04]} 43. Ne5 {
[%emt 0:00:08]} Rg1 {[%emt 0:00:06]} 44. c6 {[%emt 0:00:01]} bxc6 {[%emt 0:00:
01]} 45. b6 {[%emt 0:00:02]} Rg3+ {[%emt 0:00:03]} 46. Kd2 {[%emt 0:00:02]} c5
{[%emt 0:00:09]} 47. b7 {[%emt 0:00:02]} cxd4 {[%emt 0:00:01]} 48. Nxd5+ {
[%emt 0:00:06]} exd5 {[%emt 0:00:05]} 49. b8=Q {[%emt 0:00:02]} Ne4+ {[%emt 0:
00:00]} 50. Kc1 {[%emt 0:00:05]} Rc3+ {[%emt 0:00:02]} 51. Kb2 {[%emt 0:00:02]}
1/2-1/2

[Event "FIDE Women World Blitz 2021"]
[Site "Warsaw"]
[Date "2021.12.29"]
[Round "1.38"]
[White "Mamedjarova, Zeinab"]
[Black "Malicka, Maria"]
[Result "1-0"]
[ECO "E14"]
[WhiteElo "2249"]
[BlackElo "2307"]
[Annotator "NA"]
[PlyCount "123"]
[EventDate "2021.12.29"]
[EventType "swiss"]
[EventCountry "POL"]
[Tiebreak "Cut1 Buchholz"]
[SourceTitle "playchess.com"]
[Source "ChessBase"]
[SourceQuality "1"]
[TimeControl "180+2"]

1. d4 {[%emt 0:00:01]} Nf6 {[%emt 0:00:01]} 2. Nf3 {[%emt 0:00:01]} e6 {
[%emt 0:00:03]} 3. e3 {[%emt 0:00:02]} c5 {[%emt 0:00:03]} 4. Bd3 {[%emt 0:00:
03]} b6 {[%emt 0:00:03]} 5. O-O {[%emt 0:00:02]} Bb7 {[%emt 0:00:01]} 6. Nbd2 {
[%emt 0:00:06]} Be7 {[%emt 0:00:01]} 7. b3 {[%emt 0:00:01]} O-O {[%emt 0:00:04]
} 8. Bb2 {[%emt 0:00:01]} d6 {[%emt 0:00:07]} 9. c4 {[%emt 0:00:06]} Nbd7 {
[%emt 0:00:07]} 10. Rc1 {[%emt 0:00:04]} Rc8 {[%emt 0:00:01]} 11. Qe2 {[%emt 0:
00:01]} Re8 {[%emt 0:00:02]} 12. Rfd1 {[%emt 0:00:02]} Qc7 {[%emt 0:00:09]} 13.
Bb1 {[%emt 0:00:19]} Bf8 {[%emt 0:00:06]} 14. dxc5 {[%emt 0:00:13]} dxc5 {
[%emt 0:00:34]} 15. h3 {[%emt 0:00:08]} Bd6 {[%emt 0:00:10]} 16. Ng5 {[%emt 0:
00:40]} Be5 {[%emt 0:00:17]} 17. Bxe5 {[%emt 0:00:24]} Nxe5 {[%emt 0:00:01]}
18. Nde4 {[%emt 0:00:03]} Nxe4 {[%emt 0:00:06]} 19. Nxe4 {[%emt 0:00:01]} Red8
{[%emt 0:00:08]} 20. Qh5 {[%emt 0:00:06]} Bxe4 {[%emt 0:00:29]} 21. Bxe4 {
[%emt 0:00:03]} g6 {[%emt 0:00:07]} 22. Qg5 {[%emt 0:00:02]} Kg7 {[%emt 0:00:
12]} 23. h4 {[%emt 0:00:01]} h6 {[%emt 0:00:05]} 24. Qg3 {[%emt 0:00:02]} Nc6 {
[%emt 0:00:27]} 25. Qxc7 {[%emt 0:00:24]} Rxc7 {[%emt 0:00:05]} 26. Bxc6 {
[%emt 0:00:07]} Rxd1+ {[%emt 0:00:01]} 27. Rxd1 {[%emt 0:00:01]} Rxc6 {[%emt 0:
00:01]} 28. Rd7 {[%emt 0:00:01]} a6 {[%emt 0:00:04]} 29. Kf1 {[%emt 0:00:23]}
b5 {[%emt 0:00:00]} 30. Ra7 {[%emt 0:00:09]} bxc4 {[%emt 0:00:06]} 31. bxc4 {
[%emt 0:00:01]} Rb6 {[%emt 0:00:00]} 32. a3 {[%emt 0:00:03]} Rb1+ {[%emt 0:00:
11]} 33. Ke2 {[%emt 0:00:01]} Rb2+ {[%emt 0:00:00]} 34. Kf3 {[%emt 0:00:01]}
Rc2 {[%emt 0:00:04]} 35. Rxa6 {[%emt 0:00:01]} Rxc4 {[%emt 0:00:01]} 36. g3 {
[%emt 0:00:04]} Rc2 {[%emt 0:00:03]} 37. e4 {[%emt 0:00:08]} Kf6 {[%emt 0:00:
04]} 38. Ke3 {[%emt 0:00:02]} Rc3+ {[%emt 0:00:08]} 39. Kd2 {[%emt 0:00:01]}
Rc4 {[%emt 0:00:01]} 40. f3 {[%emt 0:00:04]} Kg7 {[%emt 0:00:04]} 41. a4 {
[%emt 0:00:05]} Rb4 {[%emt 0:00:01]} 42. Kc3 {[%emt 0:00:06]} Rb1 {[%emt 0:00:
01]} 43. Kc4 {[%emt 0:00:04]} Rf1 {[%emt 0:00:03]} 44. f4 {[%emt 0:00:04]} Rf3
{[%emt 0:00:01]} 45. a5 {[%emt 0:00:02]} Rxg3 {[%emt 0:00:01]} 46. Rb6 {
[%emt 0:00:04]} Ra3 {[%emt 0:00:03]} 47. a6 {[%emt 0:00:02]} Ra4+ {[%emt 0:00:
01]} 48. Kxc5 {[%emt 0:00:01]} Rxe4 {[%emt 0:00:01]} 49. Kb5 {[%emt 0:00:02]}
Re1 {[%emt 0:00:05]} 50. a7 {[%emt 0:00:00]} Rb1+ {[%emt 0:00:01]} 51. Ka6 {
[%emt 0:00:02]} Ra1+ {[%emt 0:00:02]} 52. Kb7 {[%emt 0:00:01]} Rxa7+ {[%emt 0:
00:03]} 53. Kxa7 {[%emt 0:00:03]} Kf6 {[%emt 0:00:05]} 54. Rb5 {[%emt 0:00:01]}
g5 {[%emt 0:00:01]} 55. fxg5+ {[%emt 0:00:02]} hxg5 {[%emt 0:00:01]} 56. hxg5+
{[%emt 0:00:02]} Kg6 {[%emt 0:00:01]} 57. Kb6 {[%emt 0:00:02]} f5 {[%emt 0:00:
01]} 58. gxf6 {[%emt 0:00:01]} Kxf6 {[%emt 0:00:01]} 59. Kc5 {[%emt 0:00:01]}
e5 {[%emt 0:00:01]} 60. Kc4 {[%emt 0:00:02]} Kf5 {[%emt 0:00:01]} 61. Kd3 Kf4
62. Ke2 {[%emt 0:00:02]} 1-0

[Event "FIDE Women World Blitz 2021"]
[Site "Warsaw"]
[Date "2021.12.29"]
[Round "1.39"]
[White "Kubicka, Anna"]
[Black "Socko, Monika"]
[Result "0-1"]
[ECO "C04"]
[WhiteElo "2273"]
[BlackElo "2393"]
[Annotator "NA"]
[PlyCount "74"]
[EventDate "2021.12.29"]
[EventType "swiss"]
[EventCountry "POL"]
[Tiebreak "Cut1 Buchholz"]
[SourceTitle "playchess.com"]
[Source "ChessBase"]
[SourceQuality "1"]
[TimeControl "180+2"]

1. e4 {[%emt 0:00:01]} e6 {[%emt 0:00:01]} 2. d4 {[%emt 0:00:02]} d5 {[%emt 0:
00:01]} 3. Nd2 {[%emt 0:00:02]} Nc6 {[%emt 0:00:02]} 4. Ngf3 {[%emt 0:00:04]}
Nf6 {[%emt 0:00:05]} 5. Bd3 {[%emt 0:00:06]} Be7 {[%emt 0:00:12]} 6. c3 {
[%emt 0:00:06]} O-O {[%emt 0:00:17]} 7. O-O {[%emt 0:00:07]} h6 {[%emt 0:00:02]
} 8. h3 {[%emt 0:00:14]} b6 {[%emt 0:00:13]} 9. Qe2 {[%emt 0:00:16]} Bb7 {
[%emt 0:00:12]} 10. e5 {[%emt 0:00:02]} Nd7 {[%emt 0:00:01]} 11. Nh2 {[%emt 0:
00:03]} Bc8 {[%emt 0:00:19]} 12. f4 {[%emt 0:00:02]} f5 {[%emt 0:00:01]} 13. g4
{[%emt 0:00:09]} Na5 {[%emt 0:00:12]} 14. gxf5 {[%emt 0:00:11]} exf5 {[%emt 0:
00:01]} 15. Qh5 {[%emt 0:00:11]} Nb8 {[%emt 0:00:02]} 16. Kh1 {[%emt 0:00:10]}
Qe8 {[%emt 0:00:06]} 17. Qf3 {[%emt 0:00:02]} Be6 {[%emt 0:00:01]} 18. Rg1 {
[%emt 0:00:15]} c5 {[%emt 0:00:00]} 19. Qg3 {[%emt 0:00:41]} Qf7 {[%emt 0:00:
05]} 20. Ndf3 {[%emt 0:00:02]} Nbc6 {[%emt 0:00:03]} 21. a3 {[%emt 0:00:04]}
cxd4 {[%emt 0:00:04]} 22. b4 {[%emt 0:00:43]} Nb3 {[%emt 0:00:01]} 23. Rb1 {
[%emt 0:00:01]} Nxc1 {[%emt 0:00:01]} 24. Rbxc1 {[%emt 0:00:01]} dxc3 {[%emt 0:
00:01]} 25. Rxc3 {[%emt 0:00:01]} Rfc8 {[%emt 0:00:19]} 26. Rc2 {[%emt 0:00:01]
} Bf8 {[%emt 0:00:19]} 27. Rcg2 {[%emt 0:00:07]} d4 {[%emt 0:00:02]} 28. Nh4 {
[%emt 0:00:02]} Ne7 {[%emt 0:00:06]} 29. N2f3 {[%emt 0:00:02]} Rd8 {[%emt 0:00:
37]} 30. Nd2 {[%emt 0:00:08]} Rac8 {[%emt 0:00:00]} 31. Nhf3 {[%emt 0:00:02]}
Rc3 {[%emt 0:00:02]} 32. Be2 {[%emt 0:00:02]} Re3 {[%emt 0:00:05]} 33. Bd1 {
[%emt 0:00:02]} Rc8 {[%emt 0:00:05]} 34. Qh4 {[%emt 0:00:01]} Bd5 {[%emt 0:00:
19]} 35. Qxh6 {[%emt 0:00:02]} Rcc3 {[%emt 0:00:03]} 36. Ng5 {[%emt 0:00:05]}
gxh6 {[%emt 0:00:07]} 37. Nxf7+ {[%emt 0:00:02]} Kxf7 {[%emt 0:00:01]} 0-1

[Event "FIDE Women World Blitz 2021"]
[Site "Warsaw"]
[Date "2021.12.29"]
[Round "2.1"]
[White "Mamedjarova, Turkan"]
[Black "Utiatskaja, Irina"]
[Result "1-0"]
[ECO "E61"]
[WhiteElo "2264"]
[BlackElo "2184"]
[Annotator "NA"]
[PlyCount "83"]
[EventDate "2021.12.29"]
[EventType "swiss"]
[EventCountry "POL"]
[Tiebreak "Cut1 Buchholz"]
[SourceTitle "playchess.com"]
[Source "ChessBase"]
[SourceQuality "1"]
[TimeControl "180+2"]

1. d4 {[%emt 0:00:02]} Nf6 {[%emt 0:00:01]} 2. Nf3 {[%emt 0:00:03]} g6 {
[%emt 0:00:01]} 3. c4 {[%emt 0:00:01]} d6 {[%emt 0:00:04]} 4. Nc3 {[%emt 0:00:
01]} Bf5 {[%emt 0:00:04]} 5. Bg5 {[%emt 0:00:04]} Bg7 {[%emt 0:00:01]} 6. e3 {
[%emt 0:00:02]} O-O {[%emt 0:00:05]} 7. Be2 {[%emt 0:00:06]} Ne4 {[%emt 0:00:
08]} 8. Nxe4 {[%emt 0:00:04]} Bxe4 {[%emt 0:00:01]} 9. O-O {[%emt 0:00:01]} h6
{[%emt 0:00:13]} 10. Bh4 {[%emt 0:00:08]} b6 {[%emt 0:00:12]} 11. Nd2 {[%emt 0:
00:07]} Bb7 {[%emt 0:00:02]} 12. f4 {[%emt 0:00:30]} c5 {[%emt 0:00:09]} 13.
Bf3 {[%emt 0:00:10]} Bxf3 {[%emt 0:00:34]} 14. Nxf3 {[%emt 0:00:29]} cxd4 {
[%emt 0:00:12]} 15. exd4 {[%emt 0:00:02]} Qc7 {[%emt 0:00:04]} 16. Rc1 {
[%emt 0:00:03]} Re8 {[%emt 0:00:10]} 17. Re1 {[%emt 0:00:11]} Nc6 {[%emt 0:00:
15]} 18. Qd2 {[%emt 0:00:17]} Rac8 {[%emt 0:00:14]} 19. d5 {[%emt 0:00:04]} Na5
{[%emt 0:00:04]} 20. b3 {[%emt 0:00:03]} Kh7 {[%emt 0:00:21]} 21. h3 {[%emt 0:
00:07]} Nb7 {[%emt 0:00:09]} 22. Re2 {[%emt 0:00:05]} e6 {[%emt 0:00:04]} 23.
dxe6 {[%emt 0:00:10]} fxe6 {[%emt 0:00:02]} 24. Rce1 {[%emt 0:00:03]} Qd7 {
[%emt 0:00:09]} 25. Bf2 {[%emt 0:00:03]} Qf7 {[%emt 0:00:03]} 26. Bd4 {[%emt 0:
00:06]} Bxd4+ {[%emt 0:00:11]} 27. Qxd4 {[%emt 0:00:01]} Rc5 {[%emt 0:00:04]}
28. Nd2 {[%emt 0:00:19]} Rf5 {[%emt 0:00:02]} 29. g3 {[%emt 0:00:01]} e5 {
[%emt 0:00:02]} 30. Qd5 {[%emt 0:00:07]} Qxd5 {[%emt 0:00:02]} 31. cxd5 {
[%emt 0:00:03]} Nc5 {[%emt 0:00:03]} 32. Nc4 {[%emt 0:00:03]} Rd8 {[%emt 0:00:
03]} 33. fxe5 {[%emt 0:00:03]} dxe5 {[%emt 0:00:01]} 34. Rxe5 {[%emt 0:00:02]}
Rxd5 {[%emt 0:00:10]} 35. Re7+ {[%emt 0:00:03]} Kg8 {[%emt 0:00:01]} 36. Rxa7 {
[%emt 0:00:10]} Nd3 {[%emt 0:00:02]} 37. Re8+ {[%emt 0:00:02]} Rf8 {[%emt 0:00:
01]} 38. Rxf8+ {[%emt 0:00:02]} Kxf8 {[%emt 0:00:00]} 39. Nxb6 {[%emt 0:00:04]}
Rf5 {[%emt 0:00:04]} 40. Rd7 {[%emt 0:00:03]} Ne5 {[%emt 0:00:02]} 41. Rd1 {
[%emt 0:00:02]} Rf3 {[%emt 0:00:02]} 42. Rf1 {[%emt 0:00:01]} 1-0

[Event "FIDE Women World Blitz 2021"]
[Site "Warsaw"]
[Date "2021.12.29"]
[Round "2.1"]
[White "Garcia Martin, Marta"]
[Black "Muzychuk, Anna"]
[Result "0-1"]
[ECO "C54"]
[WhiteElo "2194"]
[BlackElo "2533"]
[Annotator "ChessBase"]
[PlyCount "78"]
[EventDate "2021.12.29"]
[EventType "swiss"]
[EventCountry "POL"]
[Tiebreak "Cut1 Buchholz"]
[SourceTitle "playchess.com"]
[Source "ChessBase"]
[SourceQuality "1"]
[TimeControl "180+2"]

1. e4 {[%emt 0:00:02]} e5 {[%emt 0:00:00]} 2. Nf3 {[%emt 0:00:01]} Nc6 {
[%emt 0:00:01]} 3. Bc4 {[%emt 0:00:01]} Bc5 {[%emt 0:00:02]} 4. O-O {[%emt 0:
00:02]} Nf6 {[%emt 0:00:00]} 5. d3 {[%emt 0:00:02]} d6 {[%emt 0:00:03]} 6. c3 {
[%emt 0:00:00]} a5 {[%emt 0:00:01]} 7. a4 {[%emt 0:00:04]} h6 {[%emt 0:00:04]}
8. Re1 {[%emt 0:00:01]} O-O {[%emt 0:00:03]} 9. h3 {[%emt 0:00:01]} Be6 {
[%emt 0:00:06]} 10. Nbd2 {[%emt 0:00:09]} Bxc4 {[%emt 0:00:08]} 11. Nxc4 {
[%emt 0:00:02]} Re8 {[%emt 0:00:03]} 12. Qb3 {[%emt 0:00:24]} Qd7 {[%emt 0:00:
06]} 13. Be3 {[%emt 0:00:04]} Bxe3 {[%emt 0:00:05]} 14. Nxe3 {[%emt 0:00:02]}
Ne7 {[%emt 0:00:19]} 15. Nh4 {[%emt 0:00:11]} c6 {[%emt 0:00:24]} 16. Nc4 {
[%emt 0:00:56]} Qe6 {[%emt 0:00:17]} 17. d4 {[%emt 0:00:49]} Nd7 {[%emt 0:00:
47]} 18. Nf5 {[%emt 0:00:14]} exd4 {[%emt 0:00:51]} 19. Nfxd6 {[%emt 0:00:19]}
b5 {[%emt 0:00:10]} 20. axb5 {[%emt 0:00:02]} cxb5 {[%emt 0:00:01]} 21. Qxb5 {
[%emt 0:00:02]} Reb8 {[%emt 0:00:01]} 22. Qh5 {[%emt 0:00:09]} dxc3 {[%emt 0:
00:01]} 23. bxc3 {[%emt 0:00:03]} a4 {[%emt 0:00:01]} 24. Red1 {[%emt 0:00:06]}
Nf6 {[%emt 0:00:02]} 25. Qf3 {[%emt 0:00:02]} Ng6 {[%emt 0:00:05]} 26. Qe3 {
[%emt 0:00:02]} Ne5 {[%emt 0:00:05]} 27. Nxe5 {[%emt 0:00:02]} Qxe5 {[%emt 0:
00:00]} 28. Nc4 {[%emt 0:00:03]} Qe6 {[%emt 0:00:01]} 29. Nd6 {[%emt 0:00:02]}
a3 {[%emt 0:00:02]} 30. e5 {[%emt 0:00:01]} Nd7 {[%emt 0:00:02]} 31. f4 {
[%emt 0:00:01]} a2 {[%emt 0:00:02]} 32. Kh2 {[%emt 0:00:01]} Rb2 {[%emt 0:00:
02]} 33. c4 {[%emt 0:00:01]} Nf8 {[%emt 0:00:03]} 34. f5 {[%emt 0:00:01]} Qd7 {
[%emt 0:00:04]} 35. Qg3 {[%emt 0:00:02]} Qc6 {[%emt 0:00:05]} 36. f6 {[%emt 0:
00:02]} g6 {[%emt 0:00:01]} 37. Re1 {[%emt 0:00:04]} Ra3 {[%emt 0:00:01]} 38.
Qg4 {[%emt 0:00:04]} h5 {[%emt 0:00:01]} 39. Qg5 {[%emt 0:00:01]} Ne6 {[%emt 0:
00:01]} 0-1